[Event "White Rook U14 Final 2019"]
[Site "Sochi"]
[Date "2019.06.10"]
[Round "9.17"]
[White "Morozov, Gennady"]
[Black "Erastov, Semen"]
[Result "1-0"]
[ECO "D31"]
[WhiteElo "1997"]
[BlackElo "2028"]
[Annotator "NA"]
[PlyCount "65"]
[EventDate "2019.06.02"]
[EventCountry "RUS"]
[SourceTitle "playchess.com"]
[Source "ChessBase"]
[SourceQuality "1"]
[TimeControl "5400+30"]

1. d4 {[%emt 0:00:00]} d5 {[%emt 0:00:00]} 2. c4 {[%emt 0:00:00]} e6 {[%emt 0:00:00]} 3. Nc3 {[%emt 0:00:00]} c6 {[%emt 0:00:00]} 4. e4 {[%emt 0:00:00]} dxe4 {[%emt 0:00:00]} 5. Nxe4 {[%emt 0:00:00]} Bb4+ {[%emt 0:00:00]} 6. Nc3 {[%emt 0:00:00]} c5 {[%emt 0:00:00]} 7. a3 {[%emt 0:00:00]} Ba5 {[%emt 0:00:00]} 8. Nf3 {[%emt 0:01:19]} Ne7 {[%emt 0:00:00]} 9. Be3 {[%emt 0:05:10]} cxd4 {[%emt 0:00:31]} 10. Nxd4 {[%emt 0:19:08]} Bxc3+ {[%emt 0:17:14]} 11. bxc3 {[%emt 0:00:00]} O-O {[%emt 0:00:00]} 12. Bd3 {[%emt 0:00:00]} Qa5 {[%emt 0:00:00]} 13. Qc2 {[%emt 0:00:00]} f5 {[%emt 0:00:00]} 14. O-O {[%emt 0:00:00]} e5 {[%emt 0:03:40]} 15. Nb5 {[%emt 0:04:08]} Nbc6 {[%emt 0:23:29]} 16. f4 {[%emt 0:28:03]} e4 {[%emt 0:00:00]} 17. Be2 {[%emt 0:00:00]} Be6 {[%emt 0:00:00]} 18. Rfd1 {[%emt 0:00:00]} Rfd8 {[%emt 0:00:00]} 19. Bc5 {[%emt 0:00:00]} a6 {[%emt 0:00:00]} 20. Bb4 {[%emt 0:00:00]} Qb6+ {[%emt 0:00:00]} 21. c5 {[%emt 0:00:00]} Nxb4 {[%emt 0:00:00]} 22. cxb4 {[%emt 0:00:00]} Qc6 {[%emt 0:00:00]} 23. Nd4 {[%emt 0:00:00]} Rxd4 {[%emt 0:00:00]} 24. Rxd4 {[%emt 0:00:00]} Nd5 {[%emt 0:00:00]} 25. Bc4 {[%emt 0:00:00]} Ne3 {[%emt 0:00:00]} 26. Bxe6+ {[%emt 0:00:00]} Qxe6 {[%emt 0:00:00]} 27. Qa2 {[%emt 0:00:00]} Re8 {[%emt 0:06:44]} 28. h3 {[%emt 0:07:33]} Kf8 {[%emt 0:02:13]} 29. Qxe6 {[%emt 0:00:46]} Rxe6 {[%emt 0:00:02]} 30. Ra2 {[%emt 0:03:03]} b5 {[%emt 0:00:00]} 31. cxb6 {[%emt 0:00:25]} g5 {[%emt 0:00:04]} 32. fxg5 {[%emt 0:00:30]} f4 {[%emt 0:00:00]} 33. g6 {[%emt 0:00:30]} 1-0

[Event "White Rook U14 Final 2019"]
[Site "Sochi"]
[Date "2019.06.10"]
[Round "9.18"]
[White "Zhukov, Maksim"]
[Black "Ermakov, Maksim"]
[Result "1-0"]
[ECO "D94"]
[WhiteElo "1986"]
[BlackElo "1623"]
[Annotator "NA"]
[PlyCount "108"]
[EventDate "2019.06.02"]
[EventCountry "RUS"]
[SourceTitle "playchess.com"]
[Source "ChessBase"]
[SourceQuality "1"]
[TimeControl "5400+30"]

1. d4 {[%emt 0:00:00]} d5 {[%emt 0:00:00]} 2. c4 {[%emt 0:00:00]} c6 {[%emt 0:00:00]} 3. Nc3 {[%emt 0:01:43]} g6 {[%emt 0:00:00]} 4. Nf3 {[%emt 0:00:38]} Nf6 {[%emt 0:00:00]} 5. e3 {[%emt 0:00:32]} Bg7 {[%emt 0:00:00]} 6. Bd3 {[%emt 0:02:10]} O-O {[%emt 0:01:49]} 7. O-O {[%emt 0:03:01]} e6 {[%emt 0:00:39]} 8. Re1 {[%emt 0:00:52]} Nbd7 {[%emt 0:00:08]} 9. e4 {[%emt 0:21:38]} dxe4 {[%emt 0:07:43]} 10. Nxe4 {[%emt 0:00:00]} Nxe4 {[%emt 0:00:00]} 11. Bxe4 {[%emt 0:00:00]} c5 {[%emt 0:00:00]} 12. Be3 {[%emt 0:02:45]} cxd4 {[%emt 0:01:37]} 13. Nxd4 {[%emt 0:00:00]} a6 {[%emt 0:00:00]} 14. g3 {[%emt 0:00:00]} Qc7 {[%emt 0:00:00]} 15. Qe2 {[%emt 0:00:00]} e5 {[%emt 0:00:00]} 16. Nb3 {[%emt 0:00:00]} Kh8 {[%emt 0:05:12]} 17. Bg2 {[%emt 0:45:48]} f5 {[%emt 0:09:28]} 18. Bd2 {[%emt 0:03:07]} e4 {[%emt 0:01:11]} 19. Bb4 {[%emt 0:00:00]} Re8 {[%emt 0:00:00]} 20. Rad1 {[%emt 0:00:00]} Nf6 {[%emt 0:00:00]} 21. Bd6 {[%emt 0:00:00]} Qf7 {[%emt 0:00:00]} 22. Nc5 {[%emt 0:00:00]} Be6 {[%emt 0:00:00]} 23. Nxe6 {[%emt 0:00:00]} Rxe6 {[%emt 0:04:43]} 24. Qc2 {[%emt 0:02:58]} Rc8 {[%emt 0:01:34]} 25. Bf1 {[%emt 0:00:29]} Ng4 {[%emt 0:00:58]} 26. Rd5 {[%emt 0:00:29]} Nf6 {[%emt 0:01:02]} 27. Rc5 {[%emt 0:00:32]} Rxc5 {[%emt 0:00:18]} 28. Bxc5 {[%emt 0:01:42]} Rc6 {[%emt 0:00:55]} 29. Bb4 {[%emt 0:00:02]} Ng4 {[%emt 0:00:08]} 30. Rd1 {[%emt 0:01:25]} h6 {[%emt 0:00:22]} 31. Rd8+ {[%emt 0:00:32]} Kh7 {[%emt 0:00:16]} 32. Qd1 {[%emt 0:00:57]} Ne5 {[%emt 0:00:08]} 33. Bc3 {[%emt 0:03:29]} Rc7 {[%emt 0:00:28]} 34. Bxe5 {[%emt 0:01:19]} Bxe5 {[%emt 0:00:38]} 35. b3 {[%emt 0:01:07]} Bf6 {[%emt 0:00:10]} 36. Rd6 {[%emt 0:01:51]} e3 {[%emt 0:00:43]} 37. fxe3 {[%emt 0:01:44]} Bg5 {[%emt 0:05:30]} 38. Qf3 {[%emt 0:01:29]} Re7 {[%emt 0:00:28]} 39. Rd3 {[%emt 0:04:10]} Qe6 {[%emt 0:00:15]} 40. Kf2 {[%emt 0:00:00]} Qe5 {[%emt 0:00:00]} 41. h4 {[%emt 0:00:10]} Bf6 {[%emt 0:00:00]} 42. Rd5 {[%emt 0:00:38]} Qc3 {[%emt 0:00:08]} 43. Bd3 {[%emt 0:02:07]} Kg7 {[%emt 0:02:36]} 44. Qe2 {[%emt 0:00:51]} f4 {[%emt 0:01:12]} 45. gxf4 {[%emt 0:00:58]} Bxh4+ {[%emt 0:00:32]} 46. Kg2 {[%emt 0:00:32]} Qf6 {[%emt 0:00:08]} 47. Rd4 {[%emt 0:00:02]} Rf7 {[%emt 0:01:02]} 48. c5 {[%emt 0:01:10]} h5 {[%emt 0:03:37]} 49. Rd6 {[%emt 0:00:30]} Qc3 {[%emt 0:05:15]} 50. Rxg6+ {[%emt 0:00:12]} Kf8 {[%emt 0:00:56]} 51. Qc2 {[%emt 0:00:36]} Qe1 {[%emt 0:00:08]} 52. Bc4 {[%emt 0:00:39]} Qxe3 {[%emt 0:00:16]} 53. Bxf7 {[%emt 0:00:10]} Qxf4 {[%emt 0:01:42]} 54. Be6 {[%emt 0:00:13]} Bf6 {[%emt 0:00:40]} 1-0

[Event "White Rook U14 Final 2019"]
[Site "Sochi"]
[Date "2019.06.10"]
[Round "9.20"]
[White "Kuzmina, Varvara"]
[Black "Korovina, Yana"]
[Result "1-0"]
[ECO "E17"]
[WhiteElo "1190"]
[BlackElo "1672"]
[Annotator "NA"]
[PlyCount "90"]
[EventDate "2019.06.02"]
[EventCountry "RUS"]
[SourceTitle "playchess.com"]
[Source "ChessBase"]
[SourceQuality "1"]
[TimeControl "5400+30"]

1. d4 {[%emt 0:00:00]} Nf6 {[%emt 0:00:00]} 2. Nf3 {[%emt 0:00:00]} e6 {[%emt 0:00:43]} 3. g3 {[%emt 0:00:31]} d5 {[%emt 0:02:33]} 4. Bg2 {[%emt 0:01:28]} Be7 {[%emt 1:28:14]} 5. O-O {[%emt 0:41:36]} O-O {[%emt 0:00:01]} 6. c4 {[%emt 0:00:03]} b6 {[%emt 0:00:02]} 7. Qc2 {[%emt 0:00:02]} Bb7 {[%emt 0:00:02]} 8. b3 {[%emt 0:00:05]} c5 {[%emt 0:00:04]} 9. Bb2 {[%emt 0:00:04]} Nc6 {[%emt 0:00:03]} 10. Rd1 {[%emt 0:00:02]} Qc7 {[%emt 0:00:02]} 11. Nc3 {[%emt 0:00:03]} Rfd8 {[%emt 0:00:03]} 12. e3 {[%emt 0:00:02]} Rac8 {[%emt 0:00:02]} 13. Rac1 {[%emt 0:00:03]} Qb8 {[%emt 0:00:10]} 14. Qe2 {[%emt 0:00:02]} Qa8 {[%emt 0:00:02]} 15. dxc5 {[%emt 0:00:02]} bxc5 {[%emt 0:00:02]} 16. cxd5 {[%emt 0:00:02]} exd5 {[%emt 0:00:01]} 17. Na4 {[%emt 0:00:04]} Ne4 {[%emt 0:00:01]} 18. Nd2 {[%emt 0:00:04]} Nxd2 {[%emt 0:00:01]} 19. Rxd2 {[%emt 0:00:03]} Nb4 {[%emt 0:00:01]} 20. a3 {[%emt 0:00:03]} Na6 {[%emt 0:00:02]} 21. Qg4 {[%emt 0:00:04]} d4 {[%emt 0:00:01]} 22. Bxb7 {[%emt 0:00:03]} Qxb7 {[%emt 0:00:01]} 23. exd4 {[%emt 0:00:03]} cxd4 {[%emt 0:00:02]} 24. Rxd4 {[%emt 0:00:02]} Rxc1+ {[%emt 0:00:10]} 25. Bxc1 {[%emt 0:00:03]} Rxd4 {[%emt 0:00:02]} 26. Qxd4 {[%emt 0:00:03]} Bf8 {[%emt 0:00:03]} 27. Qc4 {[%emt 0:00:04]} Nc7 {[%emt 0:00:02]} 28. b4 {[%emt 0:00:02]} Ne6 {[%emt 0:00:02]} 29. Nc5 {[%emt 0:00:03]} Qc6 {[%emt 0:00:02]} 30. Qe4 {[%emt 0:00:09]} Qc8 {[%emt 0:00:01]} 31. Qb7 {[%emt 0:00:15]} Qd8 {[%emt 0:00:06]} 32. Qd7 {[%emt 0:00:02]} Qb6 {[%emt 0:00:03]} 33. Nxe6 {[%emt 0:00:04]} fxe6 {[%emt 0:00:04]} 34. Be3 {[%emt 0:00:03]} Qa6 {[%emt 0:00:02]} 35. Qxa7 {[%emt 0:00:29]} Qd3 {[%emt 0:00:08]} 36. Kg2 {[%emt 0:00:06]} Qe4+ {[%emt 0:00:05]} 37. f3 {[%emt 0:00:04]} Qc2+ {[%emt 0:00:03]} 38. Bf2 {[%emt 0:00:02]} Qa2 {[%emt 0:00:10]} 39. b5 {[%emt 0:00:03]} h6 {[%emt 0:00:03]} 40. a4 {[%emt 0:00:01]} Qb2 {[%emt 0:00:04]} 41. Qd4 {[%emt 0:00:07]} Qb3 {[%emt 0:00:05]} 42. b6 {[%emt 0:00:02]} Kh7 {[%emt 0:00:02]} 43. a5 {[%emt 0:00:02]} Qb4 {[%emt 0:00:09]} 44. Qe4+ {[%emt 0:00:04]} Kh8 {[%emt 0:00:02]} 45. b7 {[%emt 0:00:04]} Bd6 {[%emt 0:00:04]} 1-0

[Event "White Rook U14 Final 2019"]
[Site "Sochi"]
[Date "2019.06.10"]
[Round "9.21"]
[White "Shakhov, Dmitriy"]
[Black "Gashev, Matvei"]
[Result "1/2-1/2"]
[ECO "A57"]
[WhiteElo "1624"]
[BlackElo "1968"]
[Annotator "NA"]
[PlyCount "150"]
[EventDate "2019.06.02"]
[EventCountry "RUS"]
[SourceTitle "playchess.com"]
[Source "ChessBase"]
[SourceQuality "1"]
[TimeControl "5400+30"]

1. d4 {[%emt 0:01:03]} Nf6 {[%emt 0:00:01]} 2. Nf3 {[%emt 0:00:00]} c5 {[%emt 0:00:00]} 3. d5 {[%emt 0:00:00]} g6 {[%emt 0:00:00]} 4. c4 {[%emt 0:00:00]} b5 {[%emt 0:00:00]} 5. a4 {[%emt 0:00:00]} bxc4 {[%emt 0:00:00]} 6. Nc3 {[%emt 0:00:00]} d6 {[%emt 0:00:00]} 7. e4 {[%emt 0:00:00]} Bg4 {[%emt 0:00:00]} 8. Bxc4 {[%emt 0:05:46]} Nbd7 {[%emt 0:04:28]} 9. h3 {[%emt 0:24:42]} Bxf3 {[%emt 0:06:00]} 10. Qxf3 {[%emt 0:00:00]} Bg7 {[%emt 0:00:00]} 11. O-O {[%emt 0:00:00]} O-O {[%emt 0:00:00]} 12. Qe2 {[%emt 0:00:00]} Qb6 {[%emt 0:00:00]} 13. a5 {[%emt 0:00:00]} Qb7 {[%emt 0:00:00]} 14. Bb5 {[%emt 0:00:00]} Rab8 {[%emt 0:00:00]} 15. Kh2 {[%emt 0:03:42]} Rfe8 {[%emt 0:07:09]} 16. Bc6 {[%emt 0:31:16]} Qc8 {[%emt 0:22:06]} 17. a6 {[%emt 0:00:00]} Rb4 {[%emt 0:00:00]} 18. Bb7 {[%emt 0:00:00]} Qb8 {[%emt 0:00:00]} 19. Ra4 {[%emt 0:00:00]} Rxa4 {[%emt 0:00:00]} 20. Nxa4 {[%emt 0:00:00]} e6 {[%emt 0:00:00]} 21. Qb5 {[%emt 0:00:00]} exd5 {[%emt 0:00:00]} 22. exd5 {[%emt 0:00:00]} Re4 {[%emt 0:00:00]} 23. Nc3 {[%emt 0:00:00]} Rb4 {[%emt 0:00:00]} 24. Qe2 {[%emt 0:00:00]} Ne5 {[%emt 0:00:00]} 25. Re1 {[%emt 0:00:00]} c4 {[%emt 0:14:44]} 26. Qc2 {[%emt 0:19:03]} Nd3 {[%emt 0:05:52]} 27. Re2 {[%emt 0:00:33]} Nc5 {[%emt 0:09:38]} 28. Na2 {[%emt 0:04:09]} Ra4 {[%emt 0:00:23]} 29. Nc3 {[%emt 0:00:06]} Rb4 {[%emt 0:03:14]} 30. Na2 {[%emt 0:00:19]} Rb6 {[%emt 0:01:54]} 31. Qxc4 {[%emt 0:02:14]} Nxb7 {[%emt 0:00:15]} 32. axb7 {[%emt 0:00:05]} Qxb7 {[%emt 0:01:12]} 33. Bf4 {[%emt 0:03:33]} h6 {[%emt 0:04:32]} 34. Be3 {[%emt 0:02:49]} Ra6 {[%emt 0:06:52]} 35. Nc3 {[%emt 0:00:38]} Nd7 {[%emt 0:02:44]} 36. Bd4 {[%emt 0:01:41]} Ne5 {[%emt 0:00:23]} 37. Bxe5 {[%emt 0:01:31]} Bxe5+ {[%emt 0:01:06]} 38. f4 {[%emt 0:00:06]} Bf6 {[%emt 0:02:43]} 39. b4 {[%emt 0:01:44]} Rb6 {[%emt 0:03:55]} 40. Ne4 {[%emt 0:01:37]} Bg7 {[%emt 0:00:01]} 41. b5 {[%emt 0:00:52]} Qd7 {[%emt 0:00:43]} 42. Ra2 {[%emt 0:00:13]} f5 {[%emt 0:00:34]} 43. Nd2 {[%emt 0:00:57]} Qb7 {[%emt 0:00:54]} 44. Nf3 {[%emt 0:00:29]} Rxb5 {[%emt 0:01:27]} 45. Rxa7 {[%emt 0:01:23]} Qxa7 {[%emt 0:00:30]} 46. Qxb5 {[%emt 0:00:03]} Kh7 {[%emt 0:02:36]} 47. Qe8 {[%emt 0:01:01]} Qa1 {[%emt 0:00:41]} 48. Nh4 {[%emt 0:00:19]} Qf6 {[%emt 0:00:44]} 49. Nf3 {[%emt 0:00:07]} Qc3 {[%emt 0:00:07]} 50. Nh4 {[%emt 0:00:41]} Qf6 {[%emt 0:01:07]} 51. Nf3 {[%emt 0:00:28]} g5 {[%emt 0:00:13]} 52. fxg5 {[%emt 0:00:13]} hxg5 {[%emt 0:02:10]} 53. Qh5+ {[%emt 0:00:15]} Bh6 {[%emt 0:00:53]} 54. Qe8 {[%emt 0:00:04]} g4 {[%emt 0:00:48]} 55. Qd7+ {[%emt 0:01:53]} Bg7 {[%emt 0:00:05]} 56. hxg4 {[%emt 0:00:16]} Qh6+ {[%emt 0:00:05]} 57. Kg3 {[%emt 0:00:23]} f4+ {[%emt 0:02:30]} 58. Kf2 {[%emt 0:00:49]} Qf6 {[%emt 0:01:36]} 59. Qf5+ {[%emt 0:00:10]} Qxf5 {[%emt 0:00:32]} 60. gxf5 {[%emt 0:00:15]} Kh6 {[%emt 0:01:14]} 61. g4 {[%emt 0:00:04]} fxg3+ {[%emt 0:00:31]} 62. Kxg3 {[%emt 0:00:46]} Kh5 {[%emt 0:00:03]} 63. Kf4 {[%emt 0:00:06]} Bf6 {[%emt 0:00:39]} 64. Ke4 {[%emt 0:00:18]} Kg4 {[%emt 0:00:38]} 65. Nd2 {[%emt 0:00:05]} Be7 {[%emt 0:00:17]} 66. Nc4 {[%emt 0:00:35]} Bf8 {[%emt 0:00:05]} 67. Na5 {[%emt 0:00:50]} Kg5 {[%emt 0:00:21]} 68. Nc6 {[%emt 0:00:38]} Kg4 {[%emt 0:00:29]} 69. Nd8 {[%emt 0:00:48]} Be7 {[%emt 0:00:20]} 70. Ne6 {[%emt 0:00:24]} Bf6 {[%emt 0:00:27]} 71. Nc7 {[%emt 0:00:43]} Be7 {[%emt 0:00:31]} 72. Ne8 {[%emt 0:00:18]} Kg5 {[%emt 0:00:11]} 73. f6 {[%emt 0:00:10]} Bf8 {[%emt 0:00:09]} 74. f7 {[%emt 0:01:39]} Kg6 {[%emt 0:00:36]} 75. Nxd6 {[%emt 0:00:08]} Kf6 {[%emt 0:00:38]} 1/2-1/2

[Event "White Rook U14 Final 2019"]
[Site "Sochi"]
[Date "2019.06.10"]
[Round "9.22"]
[White "Kharitonov, Maksim"]
[Black "Bratov, Ademir"]
[Result "1/2-1/2"]
[ECO "A81"]
[WhiteElo "1469"]
[BlackElo "1725"]
[Annotator "NA"]
[PlyCount "67"]
[EventDate "2019.06.02"]
[EventCountry "RUS"]
[SourceTitle "playchess.com"]
[Source "ChessBase"]
[SourceQuality "1"]
[TimeControl "5400+30"]

1. d4 {[%emt 0:00:00]} f5 {[%emt 0:00:00]} 2. g3 {[%emt 0:00:00]} Nf6 {[%emt 0:00:00]} 3. Bg2 {[%emt 0:00:00]} g6 {[%emt 0:00:00]} 4. c3 {[%emt 0:00:00]} Bg7 {[%emt 0:01:40]} 5. Qb3 {[%emt 0:00:00]} d5 {[%emt 0:01:07]} 6. Nh3 {[%emt 0:00:00]} O-O {[%emt 0:01:18]} 7. Nf4 {[%emt 0:00:00]} c6 {[%emt 0:00:37]} 8. Nd2 {[%emt 0:00:24]} e6 {[%emt 0:24:08]} 9. Nf3 {[%emt 0:11:11]} Qe8 {[%emt 0:00:00]} 10. Nd3 {[%emt 0:00:00]} Nbd7 {[%emt 0:00:00]} 11. Bf4 {[%emt 0:00:00]} Ne4 {[%emt 0:00:00]} 12. Nfe5 {[%emt 0:00:00]} Nxe5 {[%emt 0:00:00]} 13. Bxe5 {[%emt 0:00:00]} b6 {[%emt 0:00:00]} 14. Bxg7 {[%emt 0:00:00]} Kxg7 {[%emt 0:00:00]} 15. f3 {[%emt 0:00:00]} Nf6 {[%emt 0:00:00]} 16. O-O {[%emt 0:05:01]} Ba6 {[%emt 0:04:54]} 17. Rfe1 {[%emt 0:03:06]} Nd7 {[%emt 0:31:51]} 18. Qa3 {[%emt 0:14:27]} Bb5 {[%emt 0:00:00]} 19. Qd6 {[%emt 0:00:00]} Rc8 {[%emt 0:00:00]} 20. Ne5 {[%emt 0:00:00]} Nxe5 {[%emt 0:00:00]} 21. Qxe5+ {[%emt 0:00:00]} Kg8 {[%emt 0:00:00]} 22. e4 {[%emt 0:00:00]} Qf7 {[%emt 0:00:00]} 23. exf5 {[%emt 0:00:00]} exf5 {[%emt 0:00:00]} 24. Qe7 {[%emt 0:00:00]} Rfe8 {[%emt 0:00:00]} 25. Qxf7+ {[%emt 0:00:00]} Kxf7 {[%emt 0:00:00]} 26. Bf1 {[%emt 0:00:00]} Bxf1 {[%emt 0:00:00]} 27. Kxf1 {[%emt 0:00:00]} Kf6 {[%emt 0:00:00]} 28. Rxe8 {[%emt 0:00:00]} Rxe8 {[%emt 0:00:00]} 29. Re1 {[%emt 0:00:00]} Rxe1+ {[%emt 0:00:00]} 30. Kxe1 {[%emt 0:00:00]} Kg5 {[%emt 0:00:00]} 31. Kf2 {[%emt 0:00:00]} f4 {[%emt 0:00:00]} 32. g4 {[%emt 0:00:00]} c5 {[%emt 0:08:24]} 33. b4 {[%emt 0:08:19]} c4 {[%emt 0:05:47]} 34. b5 {[%emt 0:00:58]} 1/2-1/2

[Event "White Rook U14 Final 2019"]
[Site "Sochi"]
[Date "2019.06.10"]
[Round "9.23"]
[White "Druchenko, Mikhail"]
[Black "Osadchy, Viktor S."]
[Result "1/2-1/2"]
[ECO "B00"]
[WhiteElo "1774"]
[BlackElo "2110"]
[Annotator "NA"]
[PlyCount "118"]
[EventDate "2019.06.02"]
[EventCountry "RUS"]
[SourceTitle "playchess.com"]
[Source "ChessBase"]
[SourceQuality "1"]
[TimeControl "5400+30"]

1. e4 {[%emt 0:00:00]} e6 {[%emt 0:00:00]} 2. d4 {[%emt 0:00:00]} b6 {[%emt 0:00:00]} 3. Nf3 {[%emt 0:00:04]} Bb7 {[%emt 0:00:00]} 4. Bd3 {[%emt 0:00:55]} Nf6 {[%emt 0:00:00]} 5. Nc3 {[%emt 0:01:14]} Bb4 {[%emt 0:00:00]} 6. Bg5 {[%emt 0:00:38]} h6 {[%emt 0:00:42]} 7. Bxf6 {[%emt 0:02:19]} Qxf6 {[%emt 0:00:11]} 8. O-O {[%emt 0:00:20]} Bxc3 {[%emt 0:00:14]} 9. bxc3 {[%emt 0:00:03]} O-O {[%emt 0:00:39]} 10. c4 {[%emt 0:02:56]} Nc6 {[%emt 0:00:43]} 11. c3 {[%emt 0:20:37]} d6 {[%emt 0:09:20]} 12. Bc2 {[%emt 0:00:00]} e5 {[%emt 0:00:00]} 13. Rb1 {[%emt 0:00:00]} Rab8 {[%emt 0:00:00]} 14. Qd3 {[%emt 0:00:00]} Ba6 {[%emt 0:00:00]} 15. Rfd1 {[%emt 0:00:00]} Na5 {[%emt 0:00:00]} 16. Bb3 {[%emt 0:00:00]} Rbd8 {[%emt 0:00:00]} 17. Nd2 {[%emt 0:00:00]} Nc6 {[%emt 0:00:00]} 18. Ba4 {[%emt 0:10:37]} Ne7 {[%emt 0:15:26]} 19. Bb5 {[%emt 0:29:17]} Bb7 {[%emt 0:00:00]} 20. Nf3 {[%emt 0:00:00]} Ng6 {[%emt 0:00:01]} 21. Qe3 {[%emt 0:00:00]} Qe6 {[%emt 0:00:00]} 22. Re1 {[%emt 0:00:00]} c6 {[%emt 0:00:00]} 23. d5 {[%emt 0:00:00]} Qd7 {[%emt 0:00:00]} 24. Ba4 {[%emt 0:00:01]} Qc7 {[%emt 0:00:00]} 25. Nd2 {[%emt 0:00:00]} f5 {[%emt 0:00:00]} 26. exf5 {[%emt 0:00:00]} Rxf5 {[%emt 0:00:00]} 27. Bc2 {[%emt 0:00:00]} Rf6 {[%emt 0:00:00]} 28. Ne4 {[%emt 0:00:00]} Rff8 {[%emt 0:00:00]} 29. Rbd1 {[%emt 0:00:00]} cxd5 {[%emt 0:00:00]} 30. cxd5 {[%emt 0:00:01]} Ne7 {[%emt 0:00:00]} 31. Qh3 {[%emt 0:00:00]} Bc8 {[%emt 0:00:00]} 32. Qd3 {[%emt 0:00:00]} Rf4 {[%emt 0:00:00]} 33. Ng3 {[%emt 0:00:00]} g6 {[%emt 0:00:00]} 34. Re4 {[%emt 0:00:00]} Rxe4 {[%emt 0:00:00]} 35. Nxe4 {[%emt 0:00:00]} Bf5 {[%emt 0:00:00]} 36. c4 {[%emt 0:00:00]} Kg7 {[%emt 0:00:00]} 37. Qb3 {[%emt 0:12:25]} Rc8 {[%emt 0:09:25]} 38. Rc1 {[%emt 0:01:45]} Nxd5 {[%emt 0:06:30]} 39. Nxd6 {[%emt 0:00:42]} Bxc2 {[%emt 0:01:35]} 40. Rxc2 {[%emt 0:00:20]} Qxd6 {[%emt 0:00:23]} 41. cxd5 {[%emt 0:01:26]} Rxc2 {[%emt 0:00:07]} 42. Qxc2 {[%emt 0:00:01]} Qxd5 {[%emt 0:00:20]} 43. h4 {[%emt 0:01:04]} Qd6 {[%emt 0:01:26]} 44. Qe2 {[%emt 0:00:51]} h5 {[%emt 0:01:15]} 45. Qf3 {[%emt 0:01:18]} Qc7 {[%emt 0:01:18]} 46. Qe3 {[%emt 0:00:32]} a6 {[%emt 0:00:53]} 47. Qa3 {[%emt 0:01:05]} a5 {[%emt 0:00:00]} 48. Qb2 {[%emt 0:00:16]} Qc5 {[%emt 0:00:00]} 49. Qd2 {[%emt 0:01:18]} Qd4 {[%emt 0:01:21]} 50. Qc2 {[%emt 0:00:15]} Qc5 {[%emt 0:02:42]} 51. Qd2 {[%emt 0:00:04]} Qc7 {[%emt 0:00:00]} 52. Qb2 {[%emt 0:01:04]} Kf6 {[%emt 0:01:37]} 53. Qd2 {[%emt 0:02:49]} b5 {[%emt 0:00:48]} 54. Qg5+ {[%emt 0:00:44]} Kg7 {[%emt 0:00:42]} 55. Qe3 {[%emt 0:01:15]} b4 {[%emt 0:00:48]} 56. Qd2 {[%emt 0:01:49]} Qc6 {[%emt 0:01:36]} 57. Qd8 {[%emt 0:00:50]} Qc5 {[%emt 0:01:31]} 58. g3 {[%emt 0:01:31]} Kf7 {[%emt 0:01:50]} 59. Qd7+ {[%emt 0:00:24]} Qe7 {[%emt 0:03:36]} 1/2-1/2

[Event "White Rook U14 Final 2019"]
[Site "Sochi"]
[Date "2019.06.10"]
[Round "9.24"]
[White "Belova, Darya"]
[Black "Kuskova, Ruslana"]
[Result "0-1"]
[ECO "D00"]
[WhiteElo "1163"]
[BlackElo "1177"]
[Annotator "NA"]
[PlyCount "144"]
[EventDate "2019.06.02"]
[EventCountry "RUS"]
[SourceTitle "playchess.com"]
[Source "ChessBase"]
[SourceQuality "1"]
[TimeControl "5400+30"]

1. d4 {[%emt 0:00:00]} d5 {[%emt 0:00:00]} 2. e3 {[%emt 0:00:00]} Nf6 {[%emt 0:00:00]} 3. Bd3 {[%emt 0:00:00]} e6 {[%emt 0:02:43]} 4. f4 {[%emt 0:00:00]} Be7 {[%emt 0:00:57]} 5. Nf3 {[%emt 0:00:00]} c5 {[%emt 0:02:48]} 6. c3 {[%emt 0:00:00]} O-O {[%emt 0:02:04]} 7. O-O {[%emt 0:00:00]} Nc6 {[%emt 0:02:09]} 8. Ne5 {[%emt 0:00:12]} Nd7 {[%emt 0:20:51]} 9. Nd2 {[%emt 0:13:45]} Ncxe5 {[%emt 0:00:00]} 10. fxe5 {[%emt 0:00:00]} f5 {[%emt 0:00:00]} 11. Rf3 {[%emt 0:02:45]} Rf7 {[%emt 0:05:41]} 12. Rh3 {[%emt 0:42:13]} g6 {[%emt 0:14:36]} 13. Rf3 {[%emt 0:00:00]} Bf8 {[%emt 0:00:00]} 14. Rf1 {[%emt 0:00:00]} b6 {[%emt 0:00:00]} 15. Qf3 {[%emt 0:00:00]} Qe7 {[%emt 0:00:00]} 16. c4 {[%emt 0:03:07]} Bb7 {[%emt 0:03:18]} 17. Qe2 {[%emt 0:11:10]} Bg7 {[%emt 0:02:16]} 18. b3 {[%emt 0:05:06]} Raf8 {[%emt 0:05:56]} 19. Ba3 {[%emt 0:06:57]} Bh6 {[%emt 0:01:47]} 20. Nf3 {[%emt 0:05:15]} Re8 {[%emt 0:09:25]} 21. Rac1 {[%emt 0:02:35]} Qd8 {[%emt 0:06:27]} 22. cxd5 {[%emt 0:01:35]} cxd4 {[%emt 0:02:37]} 23. dxe6 {[%emt 0:01:42]} Bxe3+ {[%emt 0:00:47]} 24. Kh1 {[%emt 0:00:44]} Rxe6 {[%emt 0:11:09]} 25. Bc4 {[%emt 0:00:14]} Bxf3 {[%emt 0:00:02]} 26. Rxf3 {[%emt 0:00:55]} Rxe5 {[%emt 0:01:44]} 27. Bxf7+ {[%emt 0:00:31]} Kxf7 {[%emt 0:02:17]} 28. Qc4+ {[%emt 0:00:19]} Re6 {[%emt 0:00:40]} 29. Re1 {[%emt 0:00:49]} Ne5 {[%emt 0:00:37]} 30. Qe2 {[%emt 0:00:23]} Nxf3 {[%emt 0:00:15]} 31. Qxf3 {[%emt 0:00:47]} Qd7 {[%emt 0:00:27]} 32. Qh3 {[%emt 0:00:23]} Ke8 {[%emt 0:00:36]} 33. Qf3 {[%emt 0:00:32]} Re4 {[%emt 0:01:25]} 34. Qf1 {[%emt 0:00:36]} d3 {[%emt 0:00:05]} 35. Rd1 {[%emt 0:00:37]} Bc5 {[%emt 0:00:38]} 36. Bxc5 {[%emt 0:00:00]} bxc5 {[%emt 0:00:56]} 37. h3 {[%emt 0:00:36]} d2 {[%emt 0:00:55]} 38. Kh2 {[%emt 0:03:30]} Qd6+ {[%emt 0:00:49]} 39. g3 {[%emt 0:00:30]} Kf7 {[%emt 0:00:30]} 40. Qf2 {[%emt 0:00:24]} Rd4 {[%emt 0:00:05]} 41. Qe3 {[%emt 0:01:00]} Qe6 {[%emt 0:01:17]} 42. Qxe6+ {[%emt 0:00:42]} Kxe6 {[%emt 0:00:42]} 43. Kg2 {[%emt 0:00:01]} Ke5 {[%emt 0:00:14]} 44. Kf2 {[%emt 0:00:03]} Ke4 {[%emt 0:00:23]} 45. Ke2 {[%emt 0:00:09]} Rd3 {[%emt 0:00:18]} 46. Rxd2 {[%emt 0:00:33]} Rxd2+ {[%emt 0:00:07]} 47. Kxd2 {[%emt 0:00:05]} Kf3 {[%emt 0:00:13]} 48. g4 {[%emt 0:00:16]} fxg4 {[%emt 0:00:29]} 49. hxg4 {[%emt 0:00:10]} Kxg4 {[%emt 0:00:07]} 50. Ke2 {[%emt 0:00:06]} h5 {[%emt 0:00:12]} 51. Kf2 {[%emt 0:00:06]} Kf4 {[%emt 0:00:15]} 52. Kg2 {[%emt 0:00:06]} Ke3 {[%emt 0:00:07]} 53. Kg3 {[%emt 0:00:04]} Kd2 {[%emt 0:00:09]} 54. a3 {[%emt 0:00:05]} Kc3 {[%emt 0:00:07]} 55. b4 {[%emt 0:00:08]} cxb4 {[%emt 0:00:05]} 56. axb4 {[%emt 0:00:01]} Kxb4 {[%emt 0:00:12]} 57. Kf4 {[%emt 0:00:04]} a5 {[%emt 0:00:11]} 58. Kg5 {[%emt 0:00:03]} a4 {[%emt 0:00:09]} 59. Kxg6 {[%emt 0:00:03]} a3 {[%emt 0:00:11]} 60. Kxh5 {[%emt 0:00:00]} a2 {[%emt 0:00:09]} 61. Kh4 {[%emt 0:00:15]} a1=Q {[%emt 0:00:32]} 62. Kg4 {[%emt 0:00:05]} Qf1 {[%emt 0:00:09]} 63. Kg5 {[%emt 0:00:07]} Qf3 {[%emt 0:00:09]} 64. Kg6 {[%emt 0:00:02]} Qf4 {[%emt 0:00:09]} 65. Kg7 {[%emt 0:00:03]} Qf5 {[%emt 0:00:08]} 66. Kg8 {[%emt 0:00:30]} Qf6 {[%emt 0:00:08]} 67. Kh7 {[%emt 0:00:03]} Qg5 {[%emt 0:00:12]} 68. Kh8 {[%emt 0:00:01]} Kc5 {[%emt 0:00:14]} 69. Kh7 {[%emt 0:00:04]} Kd6 {[%emt 0:00:05]} 70. Kh8 {[%emt 0:00:05]} Ke7 {[%emt 0:00:11]} 71. Kh7 {[%emt 0:00:00]} Kf7 {[%emt 0:00:06]} 72. Kh8 {[%emt 0:00:11]} Qg7# {[%emt 0:00:06]} 0-1